Cogmind - Beta 9.1 @@@ ROGUE MODE // 2019.11.10 @ 09:56:22 Player: TBExtent Result: Destroyed by as-22993 with Assembled Heavy Rifle Performance ------------- Evolutions (0) 0 Regions Visited (2) 400 Robots Destroyed (19) 95 Value Destroyed (516) 516 Prototype IDs (3) 60 Alien Tech Used (0) 0 Bonus (0) 0 TOTAL SCORE: 1071 Bonus ------- None Cogmind --------- Core Integrity 0/250 Matter 272/300 Energy 250/250 System Corruption 0% Temperature Cool (101) Location -10/Mines Parts ------- Power (1) Ion Engine Propulsion (2) Light Treads Light Treads Utility (2) Large Storage Unit Large Storage Unit Weapon (2) Autogun Autogun Inventory (16) Light Nuclear Core Light Treads Light Treads Medium Storage Unit Medium Storage Unit Targeting Computer EM Pulse Gun EM Pulse Gun Light EM Pulse Cannon Light EM Pulse Cannon Light EM Pulse Cannon Light EM Pulse Cannon Autogun Autogun Peak State ------------ Power Ion Engine Propulsion Light Treads Light Treads Utility Large Storage Unit Large Storage Unit Weapon Autogun Autogun Inventory Light Nuclear Core Light Treads Light Treads Medium Storage Unit Medium Storage Unit Targeting Computer EM Pulse Gun EM Pulse Gun Light EM Pulse Cannon Light EM Pulse Cannon Light EM Pulse Cannon Light EM Pulse Cannon Autogun Autogun [Rating: 11] Favorites ----------- Power Light Ion Engine Engine Light Ion Engine Propulsion Light Treads Treads Light Treads Leg Aluminum Leg Utility Medium Storage Unit Storage Medium Storage Unit Protection Power Shielding Weapon Beam Cannon Energy Gun EM Pulse Gun Energy Cannon Beam Cannon Ballistic Gun Assault Rifle Build | -11 -10 -10 ------- Run | Scr Mat Min Slots Evolved . | . . . Power . | . . . Propulsion . | . . . Utility . | . . . Weapon . | . . . Parts Attached 19 | . 17 2 Power 2 | . 2 . Engine 2 | . 2 . Core . | . . . Reactor . | . . . Propulsion 5 | . 5 . Treads 4 | . 4 . Leg 1 | . 1 . Wheel . | . . . Hover . | . . . Flight . | . . . Utility 7 | . 7 . Device . | . . . Storage 6 | . 6 . Processor . | . . . Hackware . | . . . Protection 1 | . 1 . Artifact . | . . . Weapon 5 | . 3 2 Energy Gun 1 | . 1 . Energy Cannon 1 | . 1 . Ballistic Gun 3 | . 1 2 Ballistic Cannon . | . . . Launcher . | . . . Special Weapon . | . . . Impact Weapon . | . . . Slashing Weapon . | . . . Piercing Weapon . | . . . Special Melee Weapon . | . . . Unidentified Prototypes . | . . . Parts Lost 7 | . 5 2 Power 1 | . 1 . Propulsion 2 | . 2 . Utility . | . . . Weapon 4 | . 2 2 Highest Loss Streak 2 | . 2 2 Average Slot Usage (%) 98 | . 98 85 Engine 14 | . 14 14 Treads 24 | . 24 28 Leg 3 | . 3 . Storage 26 | . 26 28 Energy Gun 6 | . 6 . Energy Cannon 9 | . 9 . Ballistic Gun 11 | . 11 14 Naked Turns . | . . . Heaviest Build 43 | 12 42 43 Greatest Support 40 | 20 40 40 Greatest Overweight (x) 1 | . 1 1 Average Overweight (x) . | . . 1 Largest Inventory Capacity 16 | . 16 16 Average Capacity 10 | . 10 16 Most Carried 16 | . 16 16 Average Carried 10 | . 10 15 Final Capacity 16 | 6 16 16 Final Carried 16 | 6 16 14 Class Distribution -------------------- 100% | Mutant Dominant Class ---------------- Mutant | -10/Materials Mutant | -10/Mines Resources | -11 -10 -10 ----------- Run | Scr Mat Min Matter Collected 522 | 200 322 . Remotely . | . . . Salvage Created 729 | . 689 40 Parts 36 | . 33 3 Haulers Intercepted 2 | . 2 . Recyclers Shooed . | . . . Parts Field Recycled . | . . . Retrieved Matter . | . . . Parts Self-Destructed . | . . . Prevented . | . . . Kills | -11 -10 -10 ------- Run | Scr Mat Min Combat Hostiles Destroyed 16 | . 15 1 Guns 8 | . 8 . Cannons 8 | . 7 1 Classes Destroyed 4 | . 4 . Worker 1 | . 1 . Hauler 2 | . 2 . Swarmer 3 | . 3 . Grunt 13 | . 12 1 Best Kill Streak 4 | . 4 1 Combat Bots Only 3 | . 3 1 Max Kills in Single Turn 1 | . 1 1 Gunslinging . | . . . Exploded . | . . . Melee . | . . . Uniques/NPCs Destroyed . | . . . Combat | -11 -10 -10 -------- Run | Scr Mat Min Damage Taken 1270 | . 1016 254 Core 264 | . 192 72 Absorbed by Shields . | . . . Core Remaining (%) 100 | 100 . . Volleys Fired 74 | . 71 3 Largest 2 | . 2 2 Hottest 100 | . 100 100 Shots Fired 140 | . 134 6 Gun 98 | . 94 4 Cannon 42 | . 40 2 Launcher . | . . . Special . | . . . Kinetic 80 | . 78 2 Thermal 42 | . 40 2 Explosive . | . . . Electromagnetic 18 | . 16 2 Robot Hit Streak 16 | . 16 3 Robot Miss Streak 3 | . 3 1 Penetration Max . | . . . Secondary Targets 1 | . 1 . Max Gunslinging Chain 1 | . 1 . Shots Hit Robots 95 | . 91 4 Core Hits 34 | . 32 2 Critical Hits 1 | . 1 . Critical Kills . | . . . Critical Parts Destroyed 1 | . 1 . Melee Attacks . | . . . Impact . | . . . Slashing . | . . . Piercing . | . . . Sneak Attacks . | . . . Combat Hostiles . | . . . Follow-up Attacks . | . . . Damage Inflicted 1265 | . 1199 66 Guns 723 | . 691 32 Cannons 529 | . 495 34 Explosions . | . . . Melee . | . . . Ramming 13 | . 13 . Kinetic 579 | . 547 32 Thermal 529 | . 495 34 Explosive . | . . . Electromagnetic 144 | . 144 . Impact . | . . . Slashing . | . . . Piercing . | . . . Highest Corruption . | . . . Average Corruption . | . . . Corruption Purged . | . . . Overload Shots . | . . . Overflow Damage 5 | . 5 . Projectiles 5 | . 5 . Explosions . | . . . Melee . | . . . Knockbacks . | . . . Impact . | . . . Kinetic . | . . . Secondary . | . . . Self-Inflicted Damage . | . . . Shots . | . . . Rammed 1 | . 1 . Targets Rammed 1 | . 1 . Kicked . | . . . Crushed . | . . . Highest Temperature 329 | . 329 127 Average Temperature 88 | . 89 78 Received Heat Transfer 485 | . 387 98 Effects 1 | . 1 . Energy Bleed 1 | . 1 . Siege Activations . | . . . Robots Corrupted . | . . . Combat Hostiles . | . . . Parts Fried . | . . . Impact Corruptions . | . . . Robots Melted . | . . . Combat Hostiles . | . . . Parts Melted 1 | . 1 . Heat Transferred 1110 | . 1036 74 Parts Sabotaged . | . . . Parts Stolen . | . . . Parts Stripped . | . . . Power Chain Reactions . | . . . Missiles Intercepted . | . . . Alert | -11 -10 -10 ------- Run | Scr Mat Min Peak Influence 214 | . 214 55 Average Influence 94 | . 94 43 Maximum Alert Level 1 | . 1 . Low Security (%) 97 | . . . Level 1 2 | . . . Level 2 . | . . . Level 3 . | . . . Level 4 . | . . . Level 5 . | . . . High Security . | . . . Max Security . | . . . Squads Dispatched 3 | . 3 . Investigation 1 | . 1 . Extermination . | . . . Reinforcement 2 | . 2 . Assault . | . . . Garrison . | . . . Intercept . | . . . Construction Impeded . | . . . Haulers Reinforced . | . . . Stealth | -11 -10 -10 --------- Run | Scr Mat Min Distress Signals 4 | . 4 . Communications Jammed . | . . . Distress Signals . | . . . Times Spotted 69 | . 48 21 Peak Tracking Total 21 | . 5 21 Tactical Retreats 11 | . 11 . Traps | -11 -10 -10 ------- Run | Scr Mat Min Traps Triggered 1 | . 1 . Indirectly . | . . . Trap Hack Attempts . | . . . Triggered . | . . . Disarmed . | . . . Reprogrammed . | . . . Reused . | . . . Traps Extracted . | . . . Installed . | . . . Triggered . | . . . Machines | -11 -10 -10 ---------- Run | Scr Mat Min Machines Disabled 1 | . 1 . Max in Single Turn 1 | . 1 . Machines Sabotaged . | . . . Garrisons Compromised . | . . . Overloaded Fab Kills . | . . . Fab Network Shutdowns . | . . . Hacking | -11 -10 -10 --------- Run | Scr Mat Min Machines Accessed 6 | . 6 . Terminals 6 | . 6 . Fabricators . | . . . Repair Stations . | . . . Recycling Units . | . . . Scanalyzers . | . . . Garrison Access . | . . . Total Hacks 24 | . 24 . Successful 10 | . 10 . Failed 14 | . 14 . Catastrophic 1 | . 1 . Database Lockouts . | . . . Manual 11 | . 11 . Terminals 24 | . 24 . Fabricators . | . . . Repair Stations . | . . . Recycling Units . | . . . Scanalyzers . | . . . Garrison Access . | . . . Terminal Hacks 9 | . 9 . Prototype ID Bank 2 | . 2 . Terminal Index 1 | . 1 . Locate Traps 1 | . 1 . Hauler Manifests 1 | . 1 . Registered Components 1 | . 1 . Zone Layout 3 | . 3 . Fabricator Hacks . | . . . Repair Station Hacks . | . . . Recycling Unit Hacks . | . . . Scanalyzer . | . . . Garrison Access Hacks . | . . . Unauthorized Hacks 2 | . 2 . Terminals 1 | . 1 . Botnet 1 | . 1 . Fabricators . | . . . Repair Stations . | . . . Recycling Units . | . . . Scanalyzers . | . . . Garrison Access . | . . . Data Cores Recovered . | . . . Used . | . . . Hacking Detections 6 | . 6 . Full Trace Events . | . . . Feedback Events . | . . . Feedback Blocked . | . . . Robot Schematics Acquired . | . . . Robots Built . | . . . Matter . | . . . Time . | . . . Total Robot Build Rating . | . . . Part Schematics Acquired . | . . . Parts Built . | . . . Matter . | . . . Time . | . . . Total Part Build Rating . | . . . Parts Repaired . | . . . Time . | . . . Parts Recycled . | . . . Recycled Matter . | . . . Retrieved Matter . | . . . Retrieved Components . | . . . Parts Scanalyzed . | . . . Part Schematics Acquired . | . . . Parts Damaged . | . . . Bothacking | -11 -10 -10 ------------ Run | Scr Mat Min Used RIF Installer . | . . . Robots Hacked . | . . . Non-combat . | . . . Combat . | . . . Robot Hacks Applied . | . . . Relay Couplers Released . | . . . Robots Rewired . | . . . Allies Hacked . | . . . Hacks Repelled . | . . . Allies | -11 -10 -10 -------- Run | Scr Mat Min Total Allies . | . . . Largest Group . | . . . Highest-Rated Group . | . . . Highest-Rated Ally . | . . . Total Orders . | . . . Ally Attacks . | . . . Total Damage . | . . . Kills . | . . . Allies Corrupted . | . . . Allies Melted . | . . . Intel | -11 -10 -10 ------- Run | Scr Mat Min Robot Analysis Total . | . . . Derelict Logs Recovered . | . . . Drone Launches . | . . . Drone Recoveries . | . . . Exploration | -11 -10 -10 ------------- Run | Scr Mat Min Turns Passed 1403 | . 1392 11 Spaces Moved 690 | 1 688 1 Core . | . . . Treads 615 | . 614 1 Legs 75 | 1 74 . Wheels . | . . . Hover . | . . . Flight . | . . . Fastest Speed 120 | 120 120 180 Average Speed 157 | 120 157 180 Slowest Speed 180 | 120 180 180 Overloaded Moves . | . . . Propulsion Burnouts . | . . . Robots Hopped . | . . . Cave-ins Triggered . | . . . Exploration Rate (%) 31 | 2 89 4 Regions Visited 2 Branch Regions 1 Pre-discovered Areas . | . . . Known Exits Taken . | . . . Unknown Exits Taken 2 | 1 1 . Scrap Searched . | . . . Spaces Dug . | . . . Terrain Destroyed . | . . . Melee . | . . . Projectile . | . . . AOE . | . . . Actions | -11 -10 -10 --------- Run | Scr Mat Min Total 880 | . 874 6 Wait 61 | . 61 . Move 688 | . 687 1 Hop . | . . . Pick Up 24 | . 24 . Fast Attach 2 | . 2 . Attach 10 | . 8 2 Detach . | . . . Swap 7 | . 7 . Drop 13 | . 13 . Fire 74 | . 71 3 Melee . | . . . Ram . | . . . Kick . | . . . Crush 1 | . 1 . Escape Stasis . | . . . Rewire . | . . . Trap . | . . . Miscellaneous . | . . . Route ------- -11/Scrapyard -10/Materials (discovered 4 exits: [*Mat x2] / [*Min x2]) -10/Mines History --------- Turn | Location | Event 1 | -11/Scrapyard | Discovered new exit (range 0) 1 | -11/Scrapyard | Entered Materials 277 | -10/Materials | Discovered new exit (range 6) 310 | -10/Materials | Build established: Mutant 310 | -10/Materials | Discovered new exit (range 14) 310 | -10/Materials | Discovered new exit (range 14) 319 | -10/Materials | Core integrity fell below 50% 762 | -10/Materials | Discovered new exit (range 13) 1393 | -10/Materials | Entered Mines 1394 | -10/Mines | Assembled infested the area 1396 | -10/Mines | Core integrity fell below 20% 1404 | -10/Mines | Destroyed by as-22993 with Assembled Heavy Rifle Last Messages --------------- 01223_ Acquired 20 matter. 01289_ Acquired Autogun. 01301_ Dropped Lgt. Ion Engine. 01301_ Acquired Lgt. EM Pulse Cannon. 01302_ Dropped Med. Storage Unit. 01305_ Acquired Lgt. EM Pulse Cannon. 01306_ Dropped Wheel. 01306_ Dropped Com. Wheel. 01308_ Acquired Lgt. EM Pulse Cannon. 01378_ K-01 Serf cleans the Matter Filter. 01382_ Acquired 10 matter. 01385_ K-01 Serf cleans the Matter Filter. LOCATION=UNKNOWN GOAL=ESCAPE 01393_ G-34 Mercenary destroyed. 01394_ ALERT: Infestation in the mines, dispatching Demolisher response squad. 01397_ Beam Cannon destroyed. 01398_ EM Pulse Gun destroyed. 01403_ G-47 Trooper knocked back. Map ----- +----------------------------------------------------+ | ?????????????????????????????????????????????????? | | ?????????????????????????????????????????????????? | | ?????????????????????????????????????????????????? | | ?????????????????????????????????????????????????? | | ?????????????????????????????????????????????????? | | ?????????????????????????????????????????????????? | | ?????????????????????????????????????????????????? | | ?????????????????????????????????????????????????? | | ?????????????????????????????????????????????????? | | ?????????????????????????????????????????????????? | | ?????????????????????????????????????????????????? | | ?????????????????????????????????????????????????? | | ?????????????????????????????????????????????????? | | ?????????????????????????????????????????????????? | | ?????????????????????????????????????????????????? | | ?????????????????????##??????????????????????????? | | ?????????????????????# ?????????????????????????? | | ????????????????????##= ?????????????????????????? | | ????????????????????# a!?????????????????????????? | | ????????????????????? a ?????????????????????????? | | ?????????????????????#a ?????????????????????????? | | ?????????????????????# ##???????????????????????? | | ?????????????????????# #???????????????????????? | | ??????????????????????# a##??????????????????????? | | ????????????# a ### a ##?????????????????????? | | ???????????# aaaaaaaa@ #?????????????????????? | | ?????????? a aaaaa #?????????????????????? | | ?????????? < ###### ##?????????????????????? | | ?????????? ????????#####??????????????????????? | | ?????????????????????????????????????????????????? | | ?????????????????????????????????????????????????? | | | | | | | | | | | | | | | | | | | | | | | | | | | | | | | | | | | | | | | +----------------------------------------------------+ Best States ------------- Heat Dissipation 25 Energy Generation 10 Energy Capacity 250 Matter Stores 300 Matter Capacity 300 Sight Range 16 Terrain Scan Density 10 Power Shielding 33 Evasion (%) 40 Recoil Reduction 2 Item Schematics ----------------- None Robot Schematics ------------------ None Fabricated ------------ Nothing Alien Tech Used ----------------- None Achievements -------------- None Challenges ------------ None Game ------ Seed IonTiamatStabilizer Manual? 0 Play Time 00:12:21 Cumulative 177.7 hours Start 2019.11.10 @ 09:44:23 End 2019.11.10 @ 09:56:22 Sessions 1 Manual Loads 0 Difficulty Rogue Special Mode None Game No. 109 Rogue 93 Adventurer 8 Explorer 0 Win Type - Total 7 Types 6/0/0/1/0/0/0 Lore% 69 Gallery% 70 Achievement% 60 Wizard Run 0 Options --------- ASCII 0 Keyboard 0 Movement Mouse Keybinds 0 Fullscreen 2 Font 14/SmallcapsGlow Map View 72x52 Tactical HUD 1 Map Filters NONE Filters NONE Steam X RUN: 5013a0c9-92aa-4d61-a1bb-e752dd618c94